[Event "Titled Tuesday Blitz December 20 Early 2022"]
[White "Elbek_Jumanov"]
[Black "Alexander_Donchenko"]
[WhiteElo "2435"]
[BlackElo "2812"]
[Result "0-1"]
[Round "01"]
[TimeControl "180+2"]
[Date "2022.12.20"]
[WhiteClock "0:00:33"]
[BlackClock "0:01:39"]

1. c4 {[%clk 0:03:00]}  Nf6 {[%clk 0:02:59]} 2. Nf3 {[%clk 0:03:00]}  b6 {[%clk 0:02:58]} 3. g3 {[%clk 0:03:00]}  Bb7 {[%clk 0:02:59]} 4. Bg2 {[%clk 0:03:01]}  g6 {[%clk 0:02:59]} 5. O-O {[%clk 0:03:01]}  Bg7 {[%clk 0:03:00]} 6. Nc3 {[%clk 0:03:01]}  O-O {[%clk 0:03:00]} 7. b3 {[%clk 0:03:02]}  Ne4 {[%clk 0:02:59]} 8. Bb2 {[%clk 0:03:02]}  Nxc3 {[%clk 0:03:00]} 9. Bxc3 {[%clk 0:03:02]}  Bxc3 {[%clk 0:03:01]} 10. dxc3 {[%clk 0:03:03]}  d6 {[%clk 0:03:01]} 11. h4 {[%clk 0:02:58]}  e5 {[%clk 0:03:01]} 12. h5 {[%clk 0:02:52]}  Nd7 {[%clk 0:03:01]} 13. hxg6 {[%clk 0:02:51]}  hxg6 {[%clk 0:03:01]} 14. Qd2 {[%clk 0:02:47]}  Rb8 {[%clk 0:02:54]} 15. Ng5 {[%clk 0:02:46]}  Kg7 {[%clk 0:02:43]} 16. Bxb7 {[%clk 0:02:44]}  Rxb7 {[%clk 0:02:44]} 17. Kg2 {[%clk 0:02:44]}  Qa8 {[%clk 0:02:35]} 18. Rh1 {[%clk 0:02:41]}  Rbb8+ {[%clk 0:02:35]} 19. f3 {[%clk 0:02:31]}  Rh8 {[%clk 0:02:35]} 20. Ne4 {[%clk 0:01:53]}  Rxh1 {[%clk 0:02:34]} 21. Rxh1 {[%clk 0:01:52]}  Rh8 {[%clk 0:02:35]} 22. Rxh8 {[%clk 0:01:48]}  Qxh8 {[%clk 0:02:35]} 23. Qg5 {[%clk 0:01:48]}  Qe8 {[%clk 0:02:31]} 24. Qh4 {[%clk 0:01:41]}  f6 {[%clk 0:02:28]} 25. Qh3 {[%clk 0:01:32]}  Qe7 {[%clk 0:02:26]} 26. Nd2 {[%clk 0:01:23]}  f5 {[%clk 0:02:20]} 27. e4 {[%clk 0:01:20]}  Qg5 {[%clk 0:02:20]} 28. Nf1 {[%clk 0:01:13]}  Nf6 {[%clk 0:02:19]} 29. exf5 {[%clk 0:01:11]}  gxf5 {[%clk 0:02:20]} 30. Kf2 {[%clk 0:01:09]}  Kg6 {[%clk 0:02:05]} 31. Ne3 {[%clk 0:01:08]}  f4 {[%clk 0:02:02]} 32. gxf4 {[%clk 0:01:06]}  Qxf4 {[%clk 0:02:02]} 33. Qc8 {[%clk 0:00:46]}  Ne4+ {[%clk 0:01:50]} 34. Ke2 {[%clk 0:00:45]}  Nxc3+ {[%clk 0:01:51]} 35. Kf2 {[%clk 0:00:36]}  Ne4+ {[%clk 0:01:38]} 36. Ke2 {[%clk 0:00:36]}  Qh2+ {[%clk 0:01:39]} 37. Kd3 {[%clk 0:00:33]}  Qd2+ {[%clk 0:01:38]} 38. Kxe4 {[%clk 0:00:33]}  Qd4# {[%clk 0:01:39]} 0-1


[Site "https://www.chess.com"]

[Event "Titled Tuesday Blitz December 20 Early 2022"]
[White "Emily_Dawn"]
[Black "SlipperySpeedster"]
[WhiteElo "1878"]
[BlackElo "2551"]
[Result "0-1"]
[Round "01"]
[TimeControl "180+2"]
[Date "2022.12.20"]
[WhiteClock "0:01:38"]
[BlackClock "0:02:32"]

1. e4 {[%clk 0:03:00]}  e5 {[%clk 0:02:59]} 2. Nf3 {[%clk 0:03:00]}  Nc6 {[%clk 0:03:00]} 3. Nc3 {[%clk 0:03:00]}  Nf6 {[%clk 0:02:59]} 4. Bc4 {[%clk 0:03:00]}  Nxe4 {[%clk 0:02:59]} 5. Nxe4 {[%clk 0:02:59]}  d5 {[%clk 0:03:00]} 6. Bxd5 {[%clk 0:02:46]}  Qxd5 {[%clk 0:03:01]} 7. Nc3 {[%clk 0:02:47]}  Qd8 {[%clk 0:03:01]} 8. h3 {[%clk 0:02:45]}  Bd6 {[%clk 0:03:01]} 9. O-O {[%clk 0:02:44]}  O-O {[%clk 0:03:01]} 10. d3 {[%clk 0:02:41]}  f5 {[%clk 0:03:00]} 11. Bg5 {[%clk 0:02:36]}  Qe8 {[%clk 0:02:59]} 12. Qd2 {[%clk 0:02:32]}  f4 {[%clk 0:02:57]} 13. d4 {[%clk 0:02:17]}  h6 {[%clk 0:02:47]} 14. dxe5 {[%clk 0:02:14]}  Nxe5 {[%clk 0:02:46]} 15. Bxf4 {[%clk 0:02:00]}  Nxf3+ {[%clk 0:02:41]} 16. gxf3 {[%clk 0:02:01]}  Bxf4 {[%clk 0:02:41]} 17. Qd5+ {[%clk 0:01:59]}  Be6 {[%clk 0:02:40]} 18. Qxb7 {[%clk 0:01:58]}  Qg6+ {[%clk 0:02:38]} 19. Kh1 {[%clk 0:01:58]}  Bxh3 {[%clk 0:02:39]} 20. Rg1 {[%clk 0:01:58]}  Qh5 {[%clk 0:02:37]} 21. Qd5+ {[%clk 0:01:57]}  Qxd5 {[%clk 0:02:35]} 22. Nxd5 {[%clk 0:01:58]}  Be6 {[%clk 0:02:35]} 23. Nc3 {[%clk 0:01:51]}  Rf5 {[%clk 0:02:34]} 24. Kg2 {[%clk 0:01:46]}  Rh5 {[%clk 0:02:32]} 25. Ne4 {[%clk 0:01:40]}  Bh3+ {[%clk 0:02:31]} 26. Kh1 {[%clk 0:01:38]}  Bf1# {[%clk 0:02:32]} 0-1


[Site "https://www.chess.com"]

[Event "Titled Tuesday Blitz December 20 Early 2022"]
[White "Etoilegeniale"]
[Black "Jenkins, Drake"]
[BlackFideId "2022397"]
[WhiteElo "2593"]
[BlackElo "2130"]
[Result "1-0"]
[Round "01"]
[TimeControl "180+2"]
[Date "2022.12.20"]
[WhiteClock "0:00:16"]
[BlackClock "0:00:01"]

1. c4 {[%clk 0:03:00]}  Nf6 {[%clk 0:02:58]} 2. Nc3 {[%clk 0:02:59]}  d5 {[%clk 0:02:58]} 3. cxd5 {[%clk 0:02:59]}  Nxd5 {[%clk 0:02:58]} 4. g3 {[%clk 0:02:59]}  g6 {[%clk 0:02:54]} 5. Bg2 {[%clk 0:02:59]}  Nxc3 {[%clk 0:02:54]} 6. bxc3 {[%clk 0:02:59]}  Bg7 {[%clk 0:02:55]} 7. Nf3 {[%clk 0:02:59]}  O-O {[%clk 0:02:55]} 8. O-O {[%clk 0:02:58]}  c5 {[%clk 0:02:55]} 9. Rb1 {[%clk 0:02:57]}  Nc6 {[%clk 0:02:47]} 10. c4 {[%clk 0:02:48]}  Qc7 {[%clk 0:02:34]} 11. d3 {[%clk 0:02:47]}  Rb8 {[%clk 0:02:32]} 12. Be3 {[%clk 0:02:38]}  b6 {[%clk 0:02:32]} 13. Qc1 {[%clk 0:02:38]}  Re8 {[%clk 0:02:07]} 14. Bh6 {[%clk 0:02:36]}  Bf6 {[%clk 0:02:06]} 15. h4 {[%clk 0:02:34]}  Bg4 {[%clk 0:01:58]} 16. Re1 {[%clk 0:02:33]}  Nd4 {[%clk 0:01:52]} 17. Nxd4 {[%clk 0:02:19]}  Bxd4 {[%clk 0:01:36]} 18. Bf4 {[%clk 0:01:50]}  Be5 {[%clk 0:01:27]} 19. Bxe5 {[%clk 0:01:48]}  Qxe5 {[%clk 0:01:27]} 20. Qg5 {[%clk 0:01:47]}  Qxg5 {[%clk 0:01:07]} 21. hxg5 {[%clk 0:01:47]}  Kg7 {[%clk 0:01:04]} 22. f3 {[%clk 0:01:44]}  Bd7 {[%clk 0:01:00]} 23. Kf2 {[%clk 0:01:44]}  h6 {[%clk 0:00:58]} 24. gxh6+ {[%clk 0:01:42]}  Kxh6 {[%clk 0:00:59]} 25. f4 {[%clk 0:01:42]}  Kg7 {[%clk 0:00:57]} 26. Rh1 {[%clk 0:01:32]}  e5 {[%clk 0:00:53]} 27. e3 {[%clk 0:01:30]}  exf4 {[%clk 0:00:50]} 28. gxf4 {[%clk 0:01:27]}  Rh8 {[%clk 0:00:46]} 29. Ra1 {[%clk 0:01:09]}  Rxh1 {[%clk 0:00:38]} 30. Rxh1 {[%clk 0:01:07]}  Bf5 {[%clk 0:00:36]} 31. e4 {[%clk 0:01:04]}  Be6 {[%clk 0:00:31]} 32. Ke3 {[%clk 0:01:02]}  Rh8 {[%clk 0:00:24]} 33. Rg1 {[%clk 0:00:47]}  Kf6 {[%clk 0:00:19]} 34. a4 {[%clk 0:00:44]}  Rh2 {[%clk 0:00:16]} 35. e5+ {[%clk 0:00:36]}  Ke7 {[%clk 0:00:16]} 36. Bd5 {[%clk 0:00:26]}  Ra2 {[%clk 0:00:10]} 37. Rh1 {[%clk 0:00:20]}  Rxa4 {[%clk 0:00:08]} 38. Rh8 {[%clk 0:00:19]}  Ra1 {[%clk 0:00:07]} 39. Rb8 {[%clk 0:00:19]}  Re1+ {[%clk 0:00:05]} 40. Kd2 {[%clk 0:00:17]}  Rf1 {[%clk 0:00:04]} 41. Ke3 {[%clk 0:00:18]}  Re1+ {[%clk 0:00:04]} 42. Kf2 {[%clk 0:00:17]}  Ra1 {[%clk 0:00:04]} 43. Rb7+ {[%clk 0:00:17]}  Kf8 {[%clk 0:00:04]} 44. Bxe6 {[%clk 0:00:17]}  fxe6 {[%clk 0:00:04]} 45. Kf3 {[%clk 0:00:17]}  Rd1 {[%clk 0:00:01]} 46. Kg4 {[%clk 0:00:16]} 1-0


[Site "https://www.chess.com"]

[Event "Titled Tuesday Blitz December 20 Early 2022"]
[White "Ezat, Mohamed"]
[Black "FMalexhdez"]
[WhiteFideId "10600906"]
[WhiteElo "2402"]
[BlackElo "2290"]
[Result "1-0"]
[Round "01"]
[TimeControl "180+2"]
[Date "2022.12.20"]
[WhiteClock "0:00:26"]
[BlackClock "0:00:11"]

1. d4 {[%clk 0:02:57]}  Nf6 {[%clk 0:02:58]} 2. c4 {[%clk 0:02:53]}  e6 {[%clk 0:02:58]} 3. Nc3 {[%clk 0:02:52]}  Bb4 {[%clk 0:02:58]} 4. e3 {[%clk 0:02:50]}  c5 {[%clk 0:02:58]} 5. a3 {[%clk 0:02:49]}  Bxc3+ {[%clk 0:02:56]} 6. bxc3 {[%clk 0:02:49]}  d5 {[%clk 0:02:54]} 7. cxd5 {[%clk 0:02:48]}  exd5 {[%clk 0:02:51]} 8. Bd3 {[%clk 0:02:47]}  O-O {[%clk 0:02:48]} 9. f3 {[%clk 0:02:36]}  Nc6 {[%clk 0:02:47]} 10. Ne2 {[%clk 0:02:34]}  Re8 {[%clk 0:02:43]} 11. O-O {[%clk 0:02:32]}  b6 {[%clk 0:02:29]} 12. Ng3 {[%clk 0:02:31]}  Ne7 {[%clk 0:02:27]} 13. Ra2 {[%clk 0:02:28]}  a5 {[%clk 0:02:25]} 14. Raf2 {[%clk 0:02:22]}  Ba6 {[%clk 0:02:24]} 15. Bxa6 {[%clk 0:02:22]}  Rxa6 {[%clk 0:02:24]} 16. e4 {[%clk 0:02:22]}  Ra7 {[%clk 0:02:18]} 17. e5 {[%clk 0:02:21]}  Nd7 {[%clk 0:02:16]} 18. f4 {[%clk 0:02:18]}  f5 {[%clk 0:02:10]} 19. Be3 {[%clk 0:01:58]}  Rc7 {[%clk 0:01:59]} 20. Rb2 {[%clk 0:01:52]}  cxd4 {[%clk 0:01:48]} 21. Bxd4 {[%clk 0:01:46]}  Nc5 {[%clk 0:01:45]} 22. Rxb6 {[%clk 0:01:42]}  Ne4 {[%clk 0:01:32]} 23. Nxe4 {[%clk 0:01:33]}  dxe4 {[%clk 0:01:32]} 24. Rd6 {[%clk 0:01:32]}  Qc8 {[%clk 0:01:28]} 25. Qb3+ {[%clk 0:01:09]}  Kf8 {[%clk 0:01:14]} 26. Rb1 {[%clk 0:00:50]}  Rc6 {[%clk 0:01:01]} 27. Qb5 {[%clk 0:00:44]}  Rxc3 {[%clk 0:00:52]} 28. Bxc3 {[%clk 0:00:39]}  Qxc3 {[%clk 0:00:52]} 29. Qe2 {[%clk 0:00:37]}  Qc5+ {[%clk 0:00:41]} 30. Qf2 {[%clk 0:00:36]}  Qxa3 {[%clk 0:00:39]} 31. Qd4 {[%clk 0:00:32]}  e3 {[%clk 0:00:35]} 32. Re1 {[%clk 0:00:30]}  Nc8 {[%clk 0:00:29]} 33. Rd8 {[%clk 0:00:29]}  Ne7 {[%clk 0:00:11]} 34. e6 {[%clk 0:00:26]} 1-0


[Site "https://www.chess.com"]

[Event "Titled Tuesday Blitz December 20 Early 2022"]
[White "Felix-Rose"]
[Black "Arig, Busra"]
[BlackFideId "6309356"]
[WhiteElo "2299"]
[BlackElo "1850"]
[Result "0-1"]
[Round "01"]
[TimeControl "180+2"]
[Date "2022.12.20"]
[WhiteClock "0:01:20"]
[BlackClock "0:00:22"]

1. e4 {[%clk 0:02:58]}  Nf6 {[%clk 0:02:59]} 2. e5 {[%clk 0:02:58]}  Nd5 {[%clk 0:02:59]} 3. d4 {[%clk 0:02:59]}  d6 {[%clk 0:03:00]} 4. c4 {[%clk 0:02:59]}  Nb6 {[%clk 0:03:00]} 5. exd6 {[%clk 0:03:00]}  exd6 {[%clk 0:03:00]} 6. Nc3 {[%clk 0:03:01]}  g6 {[%clk 0:03:01]} 7. Bd3 {[%clk 0:02:59]}  Bg7 {[%clk 0:03:01]} 8. Nge2 {[%clk 0:02:59]}  O-O {[%clk 0:03:02]} 9. O-O {[%clk 0:03:00]}  Nc6 {[%clk 0:03:02]} 10. d5 {[%clk 0:02:56]}  Ne5 {[%clk 0:03:00]} 11. f4 {[%clk 0:02:56]}  Nxd3 {[%clk 0:02:58]} 12. Qxd3 {[%clk 0:02:56]}  Bf5 {[%clk 0:02:59]} 13. Ne4 {[%clk 0:02:50]}  Na4 {[%clk 0:02:16]} 14. N2g3 {[%clk 0:02:46]}  Bxe4 {[%clk 0:01:43]} 15. Nxe4 {[%clk 0:02:44]}  Nxb2 {[%clk 0:01:30]} 16. Bxb2 {[%clk 0:02:43]}  Bxb2 {[%clk 0:01:31]} 17. Rab1 {[%clk 0:02:43]}  Bg7 {[%clk 0:01:31]} 18. Rxb7 {[%clk 0:02:41]}  Re8 {[%clk 0:01:31]} 19. f5 {[%clk 0:02:25]}  Qh4 {[%clk 0:01:23]} 20. f6 {[%clk 0:02:12]}  Qxe4 {[%clk 0:00:52]} 21. Qxe4 {[%clk 0:02:12]}  Rxe4 {[%clk 0:00:53]} 22. fxg7 {[%clk 0:02:13]}  Rxc4 {[%clk 0:00:54]} 23. Re1 {[%clk 0:01:57]}  Kxg7 {[%clk 0:00:45]} 24. Re7 {[%clk 0:01:57]}  Rc8 {[%clk 0:00:42]} 25. Rxa7 {[%clk 0:01:57]}  Rf4 {[%clk 0:00:40]} 26. g3 {[%clk 0:01:52]}  Rf5 {[%clk 0:00:40]} 27. Raxc7 {[%clk 0:01:48]}  Rxc7 {[%clk 0:00:40]} 28. Rxc7 {[%clk 0:01:49]}  Rxd5 {[%clk 0:00:40]} 29. a4 {[%clk 0:01:48]}  Rd1+ {[%clk 0:00:39]} 30. Kg2 {[%clk 0:01:48]}  Ra1 {[%clk 0:00:40]} 31. Rd7 {[%clk 0:01:48]}  Rxa4 {[%clk 0:00:35]} 32. Rxd6 {[%clk 0:01:48]}  h5 {[%clk 0:00:33]} 33. h4 {[%clk 0:01:48]}  Kf8 {[%clk 0:00:33]} 34. Rd7 {[%clk 0:01:46]}  Re4 {[%clk 0:00:32]} 35. Rb7 {[%clk 0:01:45]}  Re7 {[%clk 0:00:33]} 36. Rb8+ {[%clk 0:01:45]}  Kg7 {[%clk 0:00:33]} 37. Rb6 {[%clk 0:01:45]}  Re6 {[%clk 0:00:34]} 38. Rb7 {[%clk 0:01:45]}  Kf6 {[%clk 0:00:34]} 39. Ra7 {[%clk 0:01:45]}  Re7 {[%clk 0:00:33]} 40. Ra6+ {[%clk 0:01:45]}  Kf5 {[%clk 0:00:34]} 41. Kf3 {[%clk 0:01:43]}  f6 {[%clk 0:00:33]} 42. Ra5+ {[%clk 0:01:42]}  Re5 {[%clk 0:00:33]} 43. Ra8 {[%clk 0:01:41]}  Rb5 {[%clk 0:00:33]} 44. Ra3 {[%clk 0:01:40]}  g5 {[%clk 0:00:33]} 45. hxg5 {[%clk 0:01:40]}  fxg5 {[%clk 0:00:34]} 46. Ra4 {[%clk 0:01:33]}  Rb3+ {[%clk 0:00:33]} 47. Kg2 {[%clk 0:01:33]}  Re3 {[%clk 0:00:33]} 48. Kf2 {[%clk 0:01:31]}  Re4 {[%clk 0:00:33]} 49. Ra5+ {[%clk 0:01:30]}  Kg4 {[%clk 0:00:33]} 50. Ra3 {[%clk 0:01:27]}  Kh3 {[%clk 0:00:32]} 51. Ra5 {[%clk 0:01:26]}  Rg4 {[%clk 0:00:31]} 52. Ra3 {[%clk 0:01:25]}  Rb4 {[%clk 0:00:31]} 53. Kf3 {[%clk 0:01:24]}  g4+ {[%clk 0:00:28]} 54. Kf2 {[%clk 0:01:24]}  Rb2+ {[%clk 0:00:28]} 55. Kf1 {[%clk 0:01:22]}  Rb5 {[%clk 0:00:21]} 56. Kf2 {[%clk 0:01:21]}  Rf5+ {[%clk 0:00:22]} 57. Kg1 {[%clk 0:01:21]}  Rf3 {[%clk 0:00:21]} 58. Rxf3 {[%clk 0:01:21]}  gxf3 {[%clk 0:00:21]} 59. Kf2 {[%clk 0:01:20]}  Kg4 {[%clk 0:00:22]} 60. Ke3 {[%clk 0:01:20]}  Kxg3 {[%clk 0:00:22]} 0-1


[Site "https://www.chess.com"]

[Event "Titled Tuesday Blitz December 20 Early 2022"]
[White "GiorgianBarbosa"]
[Black "Narayanan, Srinath"]
[BlackFideId "5018420"]
[WhiteElo "2484"]
[BlackElo "2559"]
[Result "0-1"]
[Round "01"]
[TimeControl "180+2"]
[Date "2022.12.20"]
[WhiteClock "0:00:26"]
[BlackClock "0:00:42"]

1. c4 {[%clk 0:02:56]}  g6 {[%clk 0:02:56]} 2. d4 {[%clk 0:02:50]}  Bg7 {[%clk 0:02:56]} 3. Nc3 {[%clk 0:02:48]}  c5 {[%clk 0:02:56]} 4. d5 {[%clk 0:02:47]}  Bxc3+ {[%clk 0:02:57]} 5. bxc3 {[%clk 0:02:47]}  f5 {[%clk 0:02:58]} 6. h4 {[%clk 0:02:42]}  Nf6 {[%clk 0:02:57]} 7. h5 {[%clk 0:02:42]}  Nxh5 {[%clk 0:02:57]} 8. Rxh5 {[%clk 0:02:42]}  gxh5 {[%clk 0:02:58]} 9. e4 {[%clk 0:02:42]}  O-O {[%clk 0:02:58]} 10. exf5 {[%clk 0:02:36]}  d6 {[%clk 0:02:54]} 11. Qxh5 {[%clk 0:02:29]}  Bxf5 {[%clk 0:02:54]} 12. Bh6 {[%clk 0:02:19]}  Rf6 {[%clk 0:02:31]} 13. Bg5 {[%clk 0:02:08]}  Rf7 {[%clk 0:02:28]} 14. Nf3 {[%clk 0:02:01]}  Bg6 {[%clk 0:02:23]} 15. Qh4 {[%clk 0:01:54]}  Nd7 {[%clk 0:02:19]} 16. Be2 {[%clk 0:01:44]}  Qa5 {[%clk 0:02:16]} 17. Kf1 {[%clk 0:01:39]}  Qxc3 {[%clk 0:02:16]} 18. Rd1 {[%clk 0:01:37]}  Ne5 {[%clk 0:02:13]} 19. Bxe7 {[%clk 0:01:23]}  Re8 {[%clk 0:01:31]} 20. Bxd6 {[%clk 0:01:18]}  Nxf3 {[%clk 0:01:30]} 21. gxf3 {[%clk 0:01:15]}  Rxf3 {[%clk 0:01:12]} 22. Bxf3 {[%clk 0:00:37]}  Qxf3 {[%clk 0:01:12]} 23. Rc1 {[%clk 0:00:37]}  Re4 {[%clk 0:00:43]} 24. Qd8+ {[%clk 0:00:27]}  Kg7 {[%clk 0:00:43]} 25. Bxc5 {[%clk 0:00:26]}  Qh1# {[%clk 0:00:42]} 0-1


[Site "https://www.chess.com"]

[Event "Titled Tuesday Blitz December 20 Early 2022"]
[White "Goryachkina, Aleksandra"]
[Black "Volkov, Nikolay Nik."]
[WhiteFideId "4147103"]
[BlackFideId "4176626"]
[WhiteElo "2571"]
[BlackElo "2123"]
[Result "1-0"]
[Round "01"]
[TimeControl "180+2"]
[Date "2022.12.20"]
[WhiteClock "0:00:04"]
[BlackClock "0:00:02"]

1. Nf3 {[%clk 0:02:57]}  d6 {[%clk 0:02:53]} 2. d4 {[%clk 0:02:55]}  g6 {[%clk 0:02:52]} 3. g3 {[%clk 0:02:53]}  Bg7 {[%clk 0:02:51]} 4. Bg2 {[%clk 0:02:53]}  Nf6 {[%clk 0:02:51]} 5. O-O {[%clk 0:02:50]}  O-O {[%clk 0:02:52]} 6. c4 {[%clk 0:02:49]}  Bf5 {[%clk 0:02:49]} 7. Nc3 {[%clk 0:02:47]}  c6 {[%clk 0:02:38]} 8. Nh4 {[%clk 0:02:35]}  Be6 {[%clk 0:02:36]} 9. b3 {[%clk 0:02:31]}  d5 {[%clk 0:02:34]} 10. cxd5 {[%clk 0:02:26]}  cxd5 {[%clk 0:02:31]} 11. Bb2 {[%clk 0:02:22]}  Nc6 {[%clk 0:02:31]} 12. e3 {[%clk 0:02:15]}  Rc8 {[%clk 0:02:04]} 13. Qe2 {[%clk 0:02:10]}  Qd7 {[%clk 0:01:44]} 14. Rfc1 {[%clk 0:02:10]}  Rfd8 {[%clk 0:01:23]} 15. Nf3 {[%clk 0:01:49]}  Bf5 {[%clk 0:01:08]} 16. Na4 {[%clk 0:01:23]}  Ne4 {[%clk 0:01:03]} 17. Nc5 {[%clk 0:01:21]}  Nxc5 {[%clk 0:01:02]} 18. dxc5 {[%clk 0:00:49]}  e5 {[%clk 0:00:49]} 19. Qd2 {[%clk 0:00:42]}  Qe7 {[%clk 0:00:31]} 20. b4 {[%clk 0:00:40]}  a5 {[%clk 0:00:23]} 21. a3 {[%clk 0:00:37]}  Na7 {[%clk 0:00:05]} 22. Rd1 {[%clk 0:00:32]}  Nb5 {[%clk 0:00:05]} 23. h3 {[%clk 0:00:31]}  Be4 {[%clk 0:00:04]} 24. Rac1 {[%clk 0:00:30]}  axb4 {[%clk 0:00:04]} 25. axb4 {[%clk 0:00:30]}  d4 {[%clk 0:00:02]} 26. exd4 {[%clk 0:00:23]}  Bxf3 {[%clk 0:00:03]} 27. Bxf3 {[%clk 0:00:22]}  Nxd4 {[%clk 0:00:03]} 28. Bxd4 {[%clk 0:00:17]}  Rxd4 {[%clk 0:00:04]} 29. Qe1 {[%clk 0:00:16]}  Rcd8 {[%clk 0:00:05]} 30. Rxd4 {[%clk 0:00:15]}  Rxd4 {[%clk 0:00:06]} 31. b5 {[%clk 0:00:14]}  Qc7 {[%clk 0:00:04]} 32. b6 {[%clk 0:00:08]}  Qc8 {[%clk 0:00:02]} 33. Bxb7 {[%clk 0:00:04]}  Qxb7 {[%clk 0:00:02]} 34. c6 {[%clk 0:00:04]} 1-0


[Site "https://www.chess.com"]

[Event "Titled Tuesday Blitz December 20 Early 2022"]
[White "Guliev, Logman"]
[Black "Rakhmanov_Aleksandr"]
[WhiteFideId "13400061"]
[WhiteElo "2250"]
[BlackElo "2797"]
[Result "0-1"]
[Round "01"]
[TimeControl "180+2"]
[Date "2022.12.20"]
[WhiteClock "0:00:01"]
[BlackClock "0:01:39"]

1. e4 {[%clk 0:00:38]}  c5 {[%clk 0:02:56]} 2. Nf3 {[%clk 0:00:38]}  Nf6 {[%clk 0:02:55]} 3. e5 {[%clk 0:00:38]}  Nd5 {[%clk 0:02:56]} 4. Nc3 {[%clk 0:00:38]}  Nxc3 {[%clk 0:02:56]} 5. dxc3 {[%clk 0:00:39]}  Nc6 {[%clk 0:02:57]} 6. Bc4 {[%clk 0:00:38]}  e6 {[%clk 0:02:56]} 7. O-O {[%clk 0:00:39]}  h6 {[%clk 0:02:57]} 8. Re1 {[%clk 0:00:39]}  Qc7 {[%clk 0:02:58]} 9. Bf4 {[%clk 0:00:39]}  b6 {[%clk 0:02:58]} 10. Bg3 {[%clk 0:00:40]}  Bb7 {[%clk 0:02:59]} 11. Qd2 {[%clk 0:00:40]}  O-O-O {[%clk 0:02:59]} 12. Rad1 {[%clk 0:00:40]}  Be7 {[%clk 0:03:00]} 13. a3 {[%clk 0:00:38]}  g5 {[%clk 0:03:00]} 14. Re3 {[%clk 0:00:32]}  h5 {[%clk 0:02:54]} 15. h4 {[%clk 0:00:28]}  gxh4 {[%clk 0:02:41]} 16. Bxh4 {[%clk 0:00:23]}  Bxh4 {[%clk 0:02:28]} 17. Nxh4 {[%clk 0:00:21]}  Nxe5 {[%clk 0:02:28]} 18. Be2 {[%clk 0:00:21]}  Rhg8 {[%clk 0:02:07]} 19. b4 {[%clk 0:00:21]}  Ng6 {[%clk 0:02:04]} 20. Nxg6 {[%clk 0:00:17]}  Rxg6 {[%clk 0:02:05]} 21. Bf1 {[%clk 0:00:15]}  Rdg8 {[%clk 0:02:00]} 22. f3 {[%clk 0:00:15]}  h4 {[%clk 0:01:57]} 23. Kf2 {[%clk 0:00:01]}  d5 {[%clk 0:01:39]} 0-1


[Site "https://www.chess.com"]

[Event "Titled Tuesday Blitz December 20 Early 2022"]
[White "HackingKid98"]
[Black "deibittowers"]
[WhiteElo "2488"]
[BlackElo "2072"]
[Result "1-0"]
[Round "01"]
[TimeControl "180+2"]
[Date "2022.12.20"]
[WhiteClock "0:01:57"]
[BlackClock "0:00:03"]

1. d4 {[%clk 0:02:54]}  e5 {[%clk 0:02:56]} 2. dxe5 {[%clk 0:02:54]}  d6 {[%clk 0:02:56]} 3. e4 {[%clk 0:02:49]}  dxe5 {[%clk 0:02:55]} 4. Qxd8+ {[%clk 0:02:47]}  Kxd8 {[%clk 0:02:54]} 5. Be3 {[%clk 0:02:48]}  Be6 {[%clk 0:02:50]} 6. Nd2 {[%clk 0:02:48]}  Nd7 {[%clk 0:02:48]} 7. O-O-O {[%clk 0:02:47]}  c6 {[%clk 0:02:45]} 8. Bc4 {[%clk 0:02:45]}  Bg4 {[%clk 0:01:38]} 9. f3 {[%clk 0:02:44]}  Bh5 {[%clk 0:01:36]} 10. g4 {[%clk 0:02:41]}  Bg6 {[%clk 0:01:32]} 11. h4 {[%clk 0:02:42]}  h5 {[%clk 0:01:28]} 12. g5 {[%clk 0:02:42]}  Kc7 {[%clk 0:01:23]} 13. Ne2 {[%clk 0:02:42]}  Bc5 {[%clk 0:01:15]} 14. Bxc5 {[%clk 0:02:41]}  Nxc5 {[%clk 0:01:09]} 15. Nb3 {[%clk 0:02:39]}  Nxb3+ {[%clk 0:01:08]} 16. Bxb3 {[%clk 0:02:38]}  Ne7 {[%clk 0:01:08]} 17. c3 {[%clk 0:02:26]}  Rad8 {[%clk 0:01:08]} 18. Bc2 {[%clk 0:02:26]}  Rxd1+ {[%clk 0:01:05]} 19. Rxd1 {[%clk 0:02:27]}  Rd8 {[%clk 0:01:04]} 20. Rxd8 {[%clk 0:02:27]}  Kxd8 {[%clk 0:01:05]} 21. f4 {[%clk 0:02:28]}  exf4 {[%clk 0:01:02]} 22. Nxf4 {[%clk 0:02:29]}  Ke8 {[%clk 0:01:00]} 23. Kd2 {[%clk 0:02:29]}  f6 {[%clk 0:00:57]} 24. Ke3 {[%clk 0:02:24]}  fxg5 {[%clk 0:00:56]} 25. hxg5 {[%clk 0:02:25]}  h4 {[%clk 0:00:56]} 26. Bd1 {[%clk 0:02:23]}  Kf7 {[%clk 0:00:51]} 27. Bg4 {[%clk 0:02:22]}  b6 {[%clk 0:00:43]} 28. Ng2 {[%clk 0:02:22]}  h3 {[%clk 0:00:40]} 29. Bxh3 {[%clk 0:02:21]}  Bh5 {[%clk 0:00:40]} 30. Nf4 {[%clk 0:02:22]}  Bd1 {[%clk 0:00:39]} 31. Bd7 {[%clk 0:02:19]}  c5 {[%clk 0:00:38]} 32. b4 {[%clk 0:02:17]}  cxb4 {[%clk 0:00:37]} 33. cxb4 {[%clk 0:02:18]}  Ng6 {[%clk 0:00:37]} 34. Nxg6 {[%clk 0:02:12]}  Kxg6 {[%clk 0:00:37]} 35. Kf4 {[%clk 0:02:13]}  Kf7 {[%clk 0:00:37]} 36. Bf5 {[%clk 0:02:12]}  Ke7 {[%clk 0:00:37]} 37. Ke5 {[%clk 0:02:11]}  Bc2 {[%clk 0:00:36]} 38. a3 {[%clk 0:02:11]}  Bb3 {[%clk 0:00:35]} 39. Bg6 {[%clk 0:02:07]}  a5 {[%clk 0:00:34]} 40. Bh5 {[%clk 0:02:07]}  axb4 {[%clk 0:00:33]} 41. axb4 {[%clk 0:02:07]}  Bc4 {[%clk 0:00:33]} 42. Bd1 {[%clk 0:02:07]}  Ba2 {[%clk 0:00:33]} 43. Ba4 {[%clk 0:02:07]}  Bc4 {[%clk 0:00:33]} 44. Bc6 {[%clk 0:02:07]}  Bf7 {[%clk 0:00:30]} 45. Bd5 {[%clk 0:02:07]}  Bg6 {[%clk 0:00:30]} 46. Bg8 {[%clk 0:02:04]}  Be8 {[%clk 0:00:26]} 47. Kf5 {[%clk 0:02:04]}  Bd7+ {[%clk 0:00:25]} 48. Kg6 {[%clk 0:02:04]}  Kf8 {[%clk 0:00:25]} 49. Bd5 {[%clk 0:02:04]}  Be8+ {[%clk 0:00:23]} 50. Kh7 {[%clk 0:02:03]}  g6 {[%clk 0:00:19]} 51. e5 {[%clk 0:02:03]}  Ke7 {[%clk 0:00:19]} 52. Kg7 {[%clk 0:02:03]}  b5 {[%clk 0:00:16]} 53. Bb3 {[%clk 0:01:59]}  Kd7 {[%clk 0:00:10]} 54. Kf6 {[%clk 0:01:58]}  Kd8 {[%clk 0:00:09]} 55. e6 {[%clk 0:01:57]}  Kc7 {[%clk 0:00:08]} 56. Bc2 {[%clk 0:01:56]}  Kd6 {[%clk 0:00:06]} 57. Be4 {[%clk 0:01:56]}  Kc7 {[%clk 0:00:03]} 58. Ke7 {[%clk 0:01:57]} 1-0


[Site "https://www.chess.com"]